fUST/lending_fUST_20251101
["ID","MTS","AMOUNT","RATE_DAILY","PERIOD"]
[392775880,1761941055774,150.0,0.00027892,2]
[392775881,1761941150654,500.0,0.00027594,4]
[392775882,1761941153975,500.0,0.00027594,4]
[392775883,1761941154808,349.12406721,0.00027594,4]
[392775884,1761941160946,500.0,0.00027593,4]
[392775885,1761941161213,500.0,0.00027867,4]
[392775886,1761941188172,500.0,0.00027594,4]
[392775887,1761941210795,500.0,0.00027594,4]
[392775888,1761941284425,150.0,0.00025436,2]
[392775889,1761941284838,150.0,0.00027748,2]
[392775890,1761941332469,150.0,0.0002589,2]
[392775891,1761941332867,177.0,0.0002789,2]
[392775892,1761941363118,150.0,0.00026874,2]
[392775970,1761941433574,-155.893652,0.00028474,4]
[392775971,1761941433583,-300.0,0.000285,2]
[392775972,1761941433592,-300.0,0.000285,2]
[392775973,1761941433601,-300.0,0.00028692,2]
[392775974,1761941433610,-214.51315826,0.00028693,5]
[392775975,1761941433622,-423.23075321,0.00028693,5]
[392775976,1761941433631,-500.0,0.00028693,5]
[392775977,1761941433641,-500.0,0.00028693,5]
[392775978,1761941433650,-500.0,0.00028693,5]
[392775979,1761941433659,-500.0,0.00028693,5]
[392775980,1761941433670,-553.81331263,0.00028693,5]
[392775981,1761941433681,-500.0,0.00028693,5]
[392775982,1761941433690,-500.0,0.00028693,5]
[392775983,1761941433700,-10874.92207243,0.00028693,2]
[392775984,1761941433709,-500.0,0.00028733,4]
[392775985,1761941433718,-155.893652,0.00029248,4]
[392775986,1761941433727,-300.0,0.00029266,30]
[392775987,1761941433735,-150.0,0.00029317,2]
[392775988,1761941433745,-377.75336372,0.00029622,5]
[392775989,1761941433756,-500.0,0.00029873,4]
[392775990,1761941433765,-167.93945882,0.00029874,2]
[392775991,1761941433774,-204.0,0.0002989,2]
[392775992,1761941433783,-151.0,0.00029956,2]
[392775993,1761941433793,-151.0,0.00029956,2]
[392775994,1761941433802,-151.0,0.00029956,2]
[392775995,1761941433811,-151.0,0.00029956,2]
[392775996,1761941433822,-151.0,0.00029956,2]
[392775997,1761941433832,-151.0,0.00029956,2]
[392775998,1761941433841,-151.0,0.00029956,2]
[392775999,1761941433850,-151.0,0.00029956,2]
[392776000,1761941433859,-151.0,0.00029956,2]
[392776001,1761941433868,-151.0,0.00029956,2]
[392776002,1761941433877,-151.0,0.00029956,2]
[392776003,1761941433886,-151.0,0.00029956,2]
[392776004,1761941433895,-151.0,0.00029956,2]
[392776005,1761941433904,-151.0,0.00029956,2]
[392776006,1761941433913,-151.0,0.00029956,2]
[392776007,1761941433922,-151.0,0.00029956,2]
[392776008,1761941433931,-151.0,0.00029956,2]
[392776009,1761941433942,-151.0,0.00029956,2]
[392776010,1761941433951,-151.0,0.00029956,2]
[392776011,1761941433960,-151.0,0.00029956,2]
[392776012,1761941433969,-151.0,0.00029956,2]
[392776013,1761941433978,-151.0,0.00029956,2]
[392776014,1761941433988,-151.0,0.00029956,2]
[392776015,1761941433997,-1388.5108028,0.00029984,2]
[392776016,1761941434006,-186.2402378,0.00029984,2]
[392776017,1761941434015,-190.2085625,0.00029984,2]
[392776018,1761941434025,-155.893652,0.00030021,4]
[392776019,1761941434035,-151.250784,0.00030021,4]
[392776020,1761941434044,-293.11,0.00030147,4]
[392776021,1761941434053,-460.2,0.00030411,10]
[392776022,1761941434063,-600.0,0.00030572,30]
[392776023,1761941434073,-400.0,0.00030608,2]
[392776024,1761941434082,-1527.63191913,0.00030608,2]
[392776025,1761941434091,-155.893652,0.00030795,4]
[392776026,1761941434100,-151.250784,0.00030795,4]
[392776027,1761941434109,-184.635931,0.00030795,4]
[392776028,1761941434118,-216.17215978,0.00031136,2]
[392776029,1761941434128,-167.93945882,0.00031386,2]
[392776030,1761941434137,-150.0,0.0003176,2]
[392776031,1761941434146,-231.0,0.0003189,2]
[392776032,1761941434156,-155.893652,0.0003195,15]
[392776033,1761941434165,-999.0,0.00032876,120]
[392776034,1761941434174,-167.93945882,0.00032898,2]
[392776035,1761941434183,-4403.43250348,0.00032967,2]
[392776036,1761941434193,-276.39210401,0.00033085,7]
[392776037,1761941434202,-476.72232351,0.00033085,7]
[392776038,1761941434212,-166.66462806,0.00033085,7]
[392776039,1761941434221,-708.66951663,0.00033086,2]
[392776040,1761941434231,-1275.60512994,0.00033086,2]
[392776041,1761941434240,-2267.74245323,0.00033086,2]
[392776042,1761941434250,-3543.34758317,0.00033086,2]
[392776043,1761941434259,-5102.42051977,0.00033086,2]
[392776044,1761941434269,-489.971838,0.00033165,2]
[392776045,1761941434278,-1388.5108028,0.00033395,2]
[392776046,1761941434288,-151.0,0.000336,20]
[392776047,1761941434297,-720.0,0.00033629,30]
[392776048,1761941434306,-150.0,0.00033665,2]
[392776049,1761941434315,-255.831,0.00033665,2]
[392776050,1761941434324,-1889.50773402,0.0003368,2]
[392776051,1761941434333,-190.2085625,0.00033835,2]
[392776052,1761941434343,-216.17215978,0.00033882,3]
[392776053,1761941434352,-258.0,0.0003389,120]
[392776054,1761941434361,-151.0,0.000341,15]
[392776055,1761941434370,-199.71,0.00034203,2]
[392776056,1761941434379,-1000.0,0.00034246,120]
[392776057,1761941434388,-1032.19413315,0.0003441,2]
[392776058,1761941434397,-167.93945882,0.0003441,2]
[392776059,1761941434405,-500.0,0.00034486,5]
[392776060,1761941434414,-500.0,0.00034486,5]
[392776061,1761941434423,-156.8414975,0.00034486,5]
[392776062,1761941434432,-274.87,0.0003451,10]
[392776063,1761941434441,-60239.5861474,0.0003452,2]
[392776064,1761941434450,-685000.0,0.0003453,2]
[392776065,1761941434460,-3000.0,0.000346,20]
[392776066,1761941434469,-3000.0,0.0003461,20]
[392776067,1761941434478,-3000.0,0.0003462,20]
[392776068,1761941434487,-3000.0,0.0003463,20]
[392776069,1761941434496,-3000.0,0.0003464,20]
[392776070,1761941434505,-3000.0,0.0003465,20]
[392776071,1761941434515,-3000.0,0.0003466,20]
[392776072,1761941434524,-3000.0,0.0003467,20]
[392776073,1761941434533,-3000.0,0.0003468,20]
[392776074,1761941434543,-3000.0,0.0003469,20]
[392776075,1761941434552,-3000.0,0.000347,20]
[392776076,1761941434561,-3000.0,0.0003471,21]
[392776077,1761941434571,-3000.0,0.0003472,21]
[392776078,1761941434580,-4015.97240983,0.0003472,2]
[392776079,1761941434589,-3000.0,0.0003473,21]
[392776080,1761941434599,-3000.0,0.0003474,21]
[392776081,1761941434608,-5924.873212,0.0003475,21]
[392776082,1761941434617,-468.27450326,0.00034827,2]
[392776083,1761941434628,-842.89410588,0.00034827,2]
[392776084,1761941434638,-1498.47841044,0.00034827,2]
[392776085,1761941434647,-2341.37251632,0.00034827,2]
[392776086,1761941434657,-3371.5764235,0.00034827,2]
[392776087,1761941434666,-4589.09013199,0.00034827,2]
[392776088,1761941434677,-167.0,0.00035,120]
[392776089,1761941434691,-999.99,0.00035,2]
[392776090,1761941434700,-1000.0,0.00035,2]
[392776091,1761941434709,-500.0,0.00035034,5]
[392776092,1761941434718,-1000.0,0.00035034,5]
[392776093,1761941434729,-1000.0,0.000353,2]
[392776094,1761941434738,-155.893652,0.00035425,15]
[392776095,1761941434749,-151.250784,0.00035425,15]
[392776096,1761941434759,-4015.97240983,0.00035443,3]
[392776097,1761941434768,-1921.36975466,0.00035453,2]
[392776098,1761941434777,-20350.6507867,0.00035461,2]
[392776099,1761941434787,-1500.0,0.00035582,5]
[392776100,1761941434796,-1000.0,0.000356,2]
[392776101,1761941434805,-155.893652,0.00035675,5]
[392776102,1761941434815,-285.0,0.0003589,120]
[392776103,1761941434824,-153.0,0.00035894,30]
[392776104,1761941434833,-153.0,0.00035894,30]
[392776105,1761941434842,-1000.0,0.000359,2]
[392776106,1761941434851,-500.0,0.00036,15]
[392776107,1761941434860,-1032.19413313,0.00036014,2]
[392776108,1761941434870,-600.0,0.0003607,2]
[392776109,1761941434879,-403.89093407,0.0003612,2]
[392776110,1761941434888,-380.94510484,0.0003613,5]
[392776111,1761941434897,-1000.0,0.000362,2]
[392776112,1761941434906,-600.0,0.00036446,2]
[392776113,1761941434915,-151.0,0.000365,15]
[392776114,1761941434924,-151.0,0.000365,14]
[392776115,1761941434933,-500.0,0.00036552,30]
[392776116,1761941434943,-158.43339365,0.00036573,5]
[392776117,1761941434952,-501.48792492,0.00036573,5]
[392776118,1761941434962,-278.0,0.00036593,2]
[392776119,1761941434971,-1950.35,0.000366,30]
[392776120,1761941434981,-216.17215978,0.00036627,4]
[392776121,1761941434990,-249.64,0.00036646,2]
[392776122,1761941434999,-150.0,0.00036665,2]
[392776123,1761941435008,-155.893652,0.00036682,2]
[392776124,1761941435017,-4015.97240983,0.0003669,3]
[392776125,1761941435026,-25746.23,0.000367,14]
[392776126,1761941435035,-302.0,0.00036707,2]
[392776127,1761941435044,-151.0,0.00036707,2]
[392776128,1761941435054,-155.893652,0.00036726,5]
[392776129,1761941435063,-151.250784,0.00036726,5]
[392776130,1761941435072,-155.893652,0.00036773,31]
[392776131,1761941435081,-1388.5108028,0.00036805,2]
[392776132,1761941435091,-212.0,0.00036809,7]
[392776133,1761941435101,-600.0,0.00036822,2]
[392776134,1761941435110,-500.0,0.00036826,30]
[392776135,1761941435119,-292.97780253,0.00036827,2]
[392776136,1761941435128,-527.36004456,0.00036827,2]
[392776137,1761941435137,-937.52896811,0.00036827,2]
[392776138,1761941435146,-1463.42412366,0.00036827,2]
[392776139,1761941435155,-864.0,0.00036992,30]
[392776140,1761941435164,-500.0,0.000371,30]
[392776141,1761941435174,-1067.9520637,0.0003715,5]
[392776142,1761941435183,-877.30228873,0.00037197,2]
[392776143,1761941435192,-500.0,0.00037374,30]
[392776144,1761941435201,-155.893652,0.00037415,2]
[392776145,1761941435210,-151.250784,0.00037415,2]
[392776146,1761941435219,-500.0,0.00037459,14]
[392776147,1761941435229,-212.0,0.00037502,2]
[392776148,1761941435239,-1032.19413313,0.00037618,2]
[392776149,1761941435248,-179.18396853,0.00037618,2]
[392776150,1761941435257,-5884.67771102,0.0003762,2]
[392776151,1761941435267,-500.0,0.00037648,30]
[392776152,1761941435276,-190.2085625,0.00037686,2]
[392776153,1761941435286,-3484.79,0.000377,14]
[392776154,1761941435295,-634267.57969489,0.00037718,20]
[392776155,1761941435311,-12288.59403285,0.00037718,20]
[392776166,1761941437807,-229.06,0.0003451,10]
[392776167,1761941437816,-971.06999034,0.00037718,20]
[392776168,1761941437827,-5456.18270409,0.00037718,20]
[392776169,1761941437837,-150.0,0.00037718,2]
[392776170,1761941437846,-10632.62139685,0.00037718,20]
[392776171,1761941437858,-11713.87649141,0.00037718,20]
[392776172,1761941437945,150.0,0.00026855,2]
[392776190,1761941442940,-192.07,0.00034179,2]
[392776191,1761941442951,-240.04554658,0.0003662,2]
[392776209,1761941447085,5000.0,0.00028,2]
[392776210,1761941455047,5000.0,0.00028,2]
[392776211,1761941457224,52.1656746,0.00027593,4]
[392776212,1761941463079,1790.45804363,0.00026,2]
[392776213,1761941500647,5000.0,0.00026,2]
[392776214,1761941650118,150.0,0.00025661,2]
[392776215,1761941951564,150.0,0.00025306,2]
[392776216,1761941963854,150.0,0.0002589,2]
[392776217,1761942026739,150.0,0.00025277,2]
[392776218,1761942103554,150.0,0.00025298,2]
[392776219,1761942175111,150.0,0.00025317,2]
[392776220,1761942188305,474.0,0.0003,120]
[392776222,1761942245648,150.0,0.00025596,2]
[392776238,1761942278787,150.0,0.0002589,2]
[392776241,1761942316436,150.0,0.00025571,2]
[392776260,1761942386149,150.0,0.00025561,2]
[392776261,1761942399221,154.0,0.00026,2]
[392776262,1761942455481,150.0,0.00025593,2]
[392776274,1761942508487,1924.51958398,0.0002,20]
[392776281,1761942510127,525.99575936,0.00026,2]
[392776284,1761942512343,745.49465666,0.00026,30]
[392776285,1761942512372,10000.01,0.00026,30]
[392776286,1761942512394,9254.51534407,0.00026,30]
[392776287,1761942512730,745.49465593,0.00026,2]
[392776288,1761942512752,10000.01,0.00026,2]
[392776289,1761942512774,9154.49534407,0.00026,2]
[392776290,1761942513634,845.51465593,0.000255,2]
[392776291,1761942513654,154.48534407,0.000255,2]
[392776292,1761942515750,164.27147424,0.00024,2]
[392776293,1761942518469,6809.83094907,0.00025,2]
[392776294,1761942521239,161.41278267,0.0002,2]
[392776295,1761942521603,199.0,0.00026,2]
[392776296,1761942528162,150.0,0.00025417,2]
[392776297,1761942536326,2388.53,0.00030137,120]
[392776298,1761942593536,150.0,0.00025683,2]
[392776299,1761942603236,150.0,0.00025344,2]
[392776341,1761942632300,-158.3292384,0.0002606,2]
[392776343,1761942632310,-193.1789347,0.0002616,2]
[392776345,1761942632320,-200.0,0.0002616,2]
[392776347,1761942632330,-177.0,0.00027683,2]
[392776350,1761942632341,-150.0,0.00027728,2]
[392776352,1761942632351,-204.0,0.00029683,2]
[392776354,1761942632361,-246.26196033,0.0002983,2]
[392776357,1761942632373,-1275.10089301,0.00029871,2]
[392776360,1761942632386,-1570.00770815,0.00029871,2]
[392776364,1761942632396,-171.31468171,0.00029952,2]
[392776368,1761942632406,-151.0,0.00029952,2]
[392776371,1761942632416,-151.0,0.00029952,2]
[392776374,1761942632425,-151.0,0.00029952,2]
[392776377,1761942632440,-151.0,0.00029952,2]
[392776380,1761942632450,-151.0,0.00029952,2]
[392776383,1761942632460,-151.0,0.00029952,2]
[392776386,1761942632471,-151.0,0.00029952,2]
[392776389,1761942632481,-151.0,0.00029952,2]
[392776392,1761942632491,-151.0,0.00029952,2]
[392776395,1761942632501,-151.0,0.00029952,2]
[392776398,1761942632512,-151.0,0.00029952,2]
[392776402,1761942632523,-151.0,0.00029952,2]
[392776404,1761942632533,-151.0,0.00029952,2]
[392776406,1761942632543,-151.0,0.00029952,2]
[392776409,1761942632553,-151.0,0.00029952,2]
[392776411,1761942632562,-151.0,0.00029952,2]
[392776413,1761942632572,-151.0,0.00029952,2]
[392776415,1761942632581,-151.0,0.00029952,2]
[392776417,1761942632591,-151.0,0.00029952,2]
[392776419,1761942632600,-151.0,0.00029952,2]
[392776421,1761942632610,-151.0,0.00029952,2]
[392776423,1761942632620,-151.0,0.00029952,2]
[392776425,1761942632630,-151.0,0.00029952,2]
[392776440,1761942632765,-300.0,0.00029967,2]
[392776442,1761942632775,-1200.0,0.00029967,2]
[392776444,1761942632785,-237.28849887,0.00029968,2]
[392776446,1761942632794,-500.0,0.00029971,4]
[392776448,1761942632803,-500.0,0.00029971,4]
[392776450,1761942632812,-447.8343254,0.00029971,4]
[392776452,1761942632821,-500.0,0.00029971,4]
[392776454,1761942632830,-493.75818775,0.00029971,4]
[392776456,1761942632839,-204.78825,0.0003,2]
[392776458,1761942632849,-5859.25754268,0.0003,2]
[392776460,1761942632861,-11936.62376988,0.0003,2]
[392776462,1761942632870,-150.0,0.00030038,2]
[392776464,1761942632879,-216.49625596,0.0003047,2]
[392776466,1761942632888,-246.26196033,0.00030486,17]
[392776468,1761942632897,-500.0,0.00030931,5]
[392776470,1761942632907,-246.26196033,0.00031141,32]
[392776472,1761942632916,-1000.0,0.00031479,5]
[392776474,1761942632925,-300.0,0.00031482,30]
[392776476,1761942632934,-300.0,0.00031482,30]
[392776479,1761942632954,-300.0,0.00031482,30]
[392776481,1761942632964,-300.0,0.00031482,30]
[392776483,1761942632974,-300.0,0.00031482,30]
[392776485,1761942632984,-300.0,0.00031482,30]
[392776487,1761942632994,-300.0,0.00031482,30]
[392776489,1761942633004,-300.0,0.00031482,30]
[392776491,1761942633013,-300.0,0.00031482,30]
[392776493,1761942633023,-300.0,0.00031482,30]
[392776495,1761942633032,-300.0,0.00031482,30]
[392776497,1761942633043,-300.0,0.00031482,30]
[392776499,1761942633052,-300.0,0.00031482,30]
[392776501,1761942633062,-300.0,0.00031482,30]
[392776503,1761942633072,-300.0,0.00031482,30]
[392776505,1761942633081,-500.0,0.00031482,2]
[392776507,1761942633091,-600.0,0.00031483,30]
[392776509,1761942633101,-500.0,0.00031537,2]
[392776511,1761942633111,-500.0,0.00031592,2]
[392776513,1761942633120,-582.0,0.00031646,2]
[392776515,1761942633130,-231.0,0.00031683,2]
[392776517,1761942633139,-160.0,0.00031725,2]
[392776519,1761942633149,-246.26196033,0.00031797,48]
[392776520,1761942633159,-1500.0,0.00032027,5]
[392776521,1761942633169,-161.18,0.00032256,2]
[392776522,1761942633178,-260.0,0.00032273,2]
[392776523,1761942633188,-420.0,0.00032299,2]
[392776524,1761942633198,-400.0,0.00032436,3]
[392776525,1761942633208,-246.26196033,0.00032452,63]
[392776526,1761942633219,-2000.0,0.00032575,5]
[392776527,1761942633228,-360.0,0.00032821,2]
[392776528,1761942633238,-246.26196033,0.00033108,79]
[392776529,1761942633248,-500.0,0.00033123,5]
[392776530,1761942633258,-460.0,0.00033369,2]
[392776531,1761942633267,-258.0,0.00033683,120]
[392776532,1761942633277,-246.26196033,0.00033763,94]
[392776533,1761942633287,-560.0,0.00033917,2]
[392776534,1761942633296,-5066.48380055,0.0003398,2]
[392776535,1761942633305,-246.26196033,0.00034419,110]
[392776536,1761942633314,-500.0,0.0003442,5]
[392776537,1761942633324,-660.0,0.00034465,2]
[392776538,1761942633333,-984.0,0.00034503,2]
[392776539,1761942633342,-2172.0,0.00034503,2]
[392776540,1761942633352,-639.0,0.00034503,2]
[392776541,1761942633361,-412.0,0.00034503,2]
[392776542,1761942633370,-201.48,0.0003456,2]
[392776543,1761942633380,-720.0,0.00034632,30]
[392776544,1761942633390,-2845.10860113,0.00034796,2]
[392776545,1761942633399,-587.0,0.00034812,2]
[392776546,1761942633408,-1000.0,0.00034968,5]
[392776547,1761942633418,-10690.68380925,0.00035,2]
[392776548,1761942633430,-656.23230228,0.00035,2]
[392776549,1761942633441,-1170.80214989,0.00035,2]
[392776550,1761942633450,-760.0,0.00035013,2]
[392776551,1761942633459,-401.59724086,0.00035266,2]
[392776552,1761942633468,-999.0,0.00035512,120]
[392776553,1761942633478,-860.0,0.00035561,2]
[392776554,1761942633488,-285.0,0.00035683,120]
[392776555,1761942633498,-214.13039457,0.00035955,2]
[392776556,1761942633507,-960.0,0.00036109,2]
[392776557,1761942633517,-1060.0,0.00036657,2]
[392776558,1761942633526,-151.756043,0.00036726,5]
[392776559,1761942633536,-803.19448172,0.00036825,3]
[392776560,1761942633546,-241.78,0.00036864,2]
[392776561,1761942633555,-1000.0,0.00036882,120]
[392776562,1761942633564,-212.0,0.00036897,2]
[392776563,1761942633574,-285.26370696,0.00037149,5]
[392776564,1761942633583,-1160.0,0.00037204,2]
[392776565,1761942633593,-213.0,0.0003729,7]
[392776566,1761942633602,-212.0,0.00037324,7]
[392776567,1761942633611,-190.89,0.00037493,10]
[392776568,1761942633620,-151.756043,0.00037502,2]
[392776569,1761942633630,-984.0,0.00037503,2]
[392776570,1761942633639,-2162.0,0.00037503,2]
[392776571,1761942633648,-627.0,0.00037503,2]
[392776572,1761942633658,-412.0,0.00037503,2]
[392776573,1761942633667,-823.0,0.00037521,2]
[392776574,1761942633676,-151.756043,0.00037538,10]
[392776575,1761942633685,-159.07,0.00037597,10]
[392776576,1761942633695,-3614.37516774,0.00037597,3]
[392776577,1761942633705,-500.0,0.00037606,4]
[392776578,1761942633715,-3212.77792688,0.00037608,3]
[392776579,1761942633726,-500.0,0.00037618,30]
[392776580,1761942633736,-201008.17918824,0.00037618,2]
[392776596,1761942638067,-482.79557357,0.00029971,4]
[392776597,1761942638077,-21235.25970371,0.00034503,2]
[392776599,1761942638122,-11467.77427441,0.00034503,2]
[392776600,1761942638137,-11784.38502579,0.00034503,2]
[392776601,1761942638149,-5512.58099609,0.00034503,2]
[392776602,1761942638159,-3238.25339304,0.00037438,2]
[392776603,1761942638178,-481.28768755,0.00037438,2]
[392776604,1761942638187,-3529.44591181,0.00037618,2]
[392776611,1761942640251,-236.00346444,0.00031591,2]
[392776612,1761942640261,-3719.54108059,0.00037459,2]
[392776613,1761942640270,-104620.19250404,0.00037618,2]
[392776614,1761942640320,-500.0,0.00031591,2]
[392776615,1761942640330,-500.0,0.00031591,2]
[392776617,1761942640339,-4000.0,0.00037618,2]
[392776618,1761942640350,-7630.65941252,0.00037618,2]
[392776629,1761942643134,-279.10285633,0.00031591,2]
[392776630,1761942643143,-3719.54108059,0.00037479,2]
[392776631,1761942643152,-795.38,0.00037608,10]
[392776632,1761942643161,-45232.72281985,0.00037618,2]
[392776634,1761942646102,-3719.54108059,0.000375,2]
[392776636,1761942646111,-1340.20384317,0.0003752,2]
[392776637,1761942747987,150.0,0.00025845,2]
[392776640,1761942878487,1426.5490142,0.00026,2]
[392776641,1761942909087,150.0,0.0002589,2]
[392776642,1761942965739,150.0,0.00025346,2]
[392776643,1761943112225,150.0,0.00025344,2]
[392776644,1761943181349,34.46043575,0.0002534,2]
[392776645,1761943181373,115.53956425,0.0002534,2]
[392776647,1761943225753,150.0,0.0002589,2]
[392776648,1761943319699,150.0,0.00025532,2]
[392776649,1761943390762,150.0,0.00025339,2]
[392776653,1761943458293,150.0,0.00025333,2]
[392776661,1761943523269,150.0,0.00025268,2]
[392776672,1761943542042,150.0,0.0002589,2]
[392776675,1761943588794,150.0,0.00025317,2]
[392776679,1761943653539,150.0,0.00025308,2]
[392776680,1761943717472,533.277135,0.00013699,2]
[392776681,1761943717677,533.277135,0.00020187,2]
[392776682,1761943718158,150.0,0.00025263,2]
[392776686,1761943782528,150.0,0.00025261,2]
[392776728,1761943832361,-533.277135,0.00026676,2]
[392776730,1761943832371,-150.0,0.00027642,2]
[392776733,1761943832381,-257.29924645,0.0002779,2]
[392776736,1761943832391,-177.0,0.0002789,2]
[392776738,1761943832401,-204.0,0.0002989,2]
[392776741,1761943832412,-150.0,0.00029946,2]
[392776744,1761943832422,-300.0,0.00029967,2]
[392776764,1761943832559,-500.0,0.00029968,4]
[392776767,1761943832577,-517.0900757,0.00029968,4]
[392776769,1761943832587,-500.0,0.00029968,4]
[392776771,1761943832596,-500.0,0.00029968,4]
[392776773,1761943832605,-499.995,0.00029968,4]
[392776775,1761943832614,-500.0,0.00029968,4]
[392776777,1761943832624,-530.58635199,0.00029999,4]
[392776779,1761943832633,-500.0,0.00029999,4]
[392776781,1761943832642,-500.0,0.00029999,4]
[392776783,1761943832651,-500.0,0.00029999,4]
[392776785,1761943832660,-632.62393033,0.00029999,4]
[392776787,1761943832669,-500.79120039,0.00029999,4]
[392776789,1761943832679,-500.0,0.00029999,3]
[392776791,1761943832688,-491.7243919,0.00029999,4]
[392776793,1761943832697,-500.0,0.00029999,4]
[392776795,1761943832705,-222.22222224,0.000314,30]
[392776797,1761943832715,-231.0,0.0003189,2]
[392776799,1761943832724,-931.3929606,0.00031919,2]
[392776801,1761943832733,-181.918877,0.00031929,60]
[392776803,1761943832742,-420.0,0.00032299,2]
[392776805,1761943832752,-1024.209089,0.00032994,2]
[392776807,1761943832761,-533.277135,0.00033165,2]
[392776809,1761943832769,-258.0,0.0003389,120]
[392776811,1761943832778,-151.0,0.0003431,2]
[392776813,1761943832787,-151.0,0.0003431,2]
[392776815,1761943832796,-151.0,0.0003431,2]
[392776817,1761943832805,-151.0,0.0003431,2]
[392776819,1761943832814,-151.0,0.0003431,2]
[392776821,1761943832823,-151.0,0.0003431,2]
[392776823,1761943832832,-151.0,0.0003431,2]
[392776825,1761943832841,-151.0,0.0003431,2]
[392776827,1761943832851,-151.0,0.0003431,2]
[392776829,1761943832860,-151.0,0.0003431,2]
[392776831,1761943832869,-151.0,0.0003431,2]
[392776833,1761943832878,-151.0,0.0003431,2]
[392776835,1761943832887,-151.0,0.0003431,2]
[392776837,1761943832897,-151.0,0.0003431,2]
[392776839,1761943832906,-151.0,0.0003431,2]
[392776841,1761943832915,-151.0,0.0003431,2]
[392776843,1761943832924,-151.0,0.0003431,2]
[392776845,1761943832933,-151.0,0.0003431,2]
[392776847,1761943832945,-151.0,0.0003431,2]
[392776849,1761943832954,-151.0,0.0003431,2]
[392776851,1761943832963,-5213.1553018,0.00034331,2]
[392776853,1761943832973,-999.0,0.00034423,2]
[392776855,1761943832985,-587.0,0.00034812,2]
[392776857,1761943832994,-585.29,0.00035,2]
[392776859,1761943833003,-1000.0,0.00035,2]
[392776861,1761943833012,-154.22493,0.0003505,15]
[392776862,1761943833022,-1000.0,0.000353,2]
[392776865,1761943833031,-633.0,0.00035355,2]
[392776867,1761943833040,-537.36,0.00035355,2]
[392776869,1761943833052,-412.0,0.00035355,2]
[392776870,1761943833061,-168.0,0.00035594,2]
[392776873,1761943833070,-1000.0,0.000356,2]
[392776875,1761943833083,-285.0,0.0003589,120]
[392776877,1761943833092,-2175.42976866,0.00036011,2]
[392776879,1761943833101,-168.0,0.00036334,2]
[392776881,1761943833111,-168.0,0.00036474,2]
[392776883,1761943833121,-326.35246607,0.00036522,4]
[392776885,1761943833129,-500.0,0.00036522,4]
[392776887,1761943833138,-386.94564576,0.00036707,2]
[392776889,1761943833147,-442.22359516,0.00036707,2]
[392776891,1761943833156,-154.22493,0.0003676,5]
[392776893,1761943833165,-151.669383,0.0003676,5]
[392776895,1761943833174,-690.28339306,0.00036886,2]
[392776897,1761943833183,-168.0,0.00037141,7]
[392776899,1761943833192,-168.0,0.00037168,2]
[392776901,1761943833202,-180.0,0.00037168,2]
[392776903,1761943833210,-500.0,0.0003722,15]
[392776905,1761943833219,-500.0,0.0003722,2]
[392776907,1761943833229,-159.12309785,0.0003722,2]
[392776909,1761943833240,-607.19564307,0.0003722,15]
[392776911,1761943833249,-500.0,0.0003722,15]
[392776913,1761943833259,-500.0,0.0003722,15]